fUST/lending_fUST_20240325
["ID","MTS","AMOUNT","RATE_DAILY","PERIOD"]
[320349183,1711315840133,-166.666666,0.00043424,2]
[320349184,1711315840142,-1127.50804761,0.00044,14]
[320349185,1711315840151,-166.666666,0.00044546,2]
[320349186,1711315840161,-166.666666,0.00045669,2]
[320349187,1711315840170,-166.666666,0.00046792,2]
[320349188,1711315840179,-431.60708594,0.00048999,4]
[320349189,1711315840188,-150.0,0.00049,68]
[320349190,1711315840198,-173.07120776,0.00054693,14]
[320349191,1711315840206,-154.93802479,0.00054792,4]
[320349192,1711315840215,-154.93802479,0.00054792,4]
[320349193,1711315840225,-154.93802479,0.00054792,4]
[320349194,1711315840234,-275.66095293,0.00054792,4]
[320349195,1711315840243,-500.0,0.00054793,120]
[320349196,1711315840252,-500.0,0.00054793,120]
[320349197,1711315840262,-500.0,0.00054793,120]
[320349198,1711315840272,-500.0,0.00054793,120]
[320349199,1711315840281,-500.0,0.00054793,120]
[320349200,1711315840290,-500.0,0.00054793,120]
[320349201,1711315840300,-500.0,0.00054793,120]
[320349202,1711315840309,-500.0,0.00054793,120]
[320349203,1711315840318,-500.0,0.00054793,120]
[320349204,1711315840328,-500.0,0.00054793,120]
[320349205,1711315840337,-500.0,0.00054793,120]
[320349206,1711315840346,-500.0,0.00054793,120]
[320349207,1711315840357,-500.0,0.00054793,120]
[320349208,1711315840367,-500.0,0.00054793,120]
[320349209,1711315840377,-500.0,0.00054793,120]
[320349210,1711315840387,-500.0,0.00054793,120]
[320349211,1711315840397,-500.0,0.00054793,120]
[320349212,1711315840407,-500.0,0.00054793,120]
[320349213,1711315840416,-500.0,0.00054793,120]
[320349214,1711315840425,-500.0,0.00054793,120]
[320349215,1711315840434,-500.0,0.00054793,120]
[320349216,1711315840443,-500.0,0.00054793,120]
[320349217,1711315840453,-500.0,0.00054793,120]
[320349218,1711315840462,-328.53166721,0.00054793,120]
[320349219,1711315840476,-171.46833279,0.00054793,120]
[320349220,1711315840486,-113.83054978,0.00054793,120]
[320349289,1711315842926,-386.16945022,0.00054793,120]
[320349290,1711315842936,-500.0,0.00054793,120]
[320349291,1711315842945,-128.45833606,0.00054793,120]
[320349297,1711316061511,500.0,0.00028061,120]
[320349362,1711317031951,-683.61393277,0.00041534,2]
[320349364,1711317031960,-2486.64787102,0.00041535,2]
[320349366,1711317031970,-436.46454208,0.00041564,4]
[320349368,1711317031979,-540.7557211,0.00041564,4]
[320349370,1711317031989,-151.188,0.00046357,2]
[320349372,1711317031998,-181.54314,0.00047932,2]
[320349374,1711317032007,-159.80199,0.00048089,2]
[320349376,1711317032017,-24880.0,0.00048098,2]
[320349380,1711317032027,-2264.35478055,0.00049,2]
[320349384,1711317032039,-451.3422,0.00049,2]
[320349386,1711317032051,-1608.58185145,0.00049,2]
[320349388,1711317032060,-159.80199,0.000494,2]
[320349390,1711317032069,-242.0,0.00049723,5]
[320349392,1711317032078,-171.66238031,0.00049821,14]
[320349394,1711317032088,-869.55055,0.00049921,2]
[320349396,1711317032097,-185.2705227,0.00050032,2]
[320349398,1711317032107,-159.80199,0.00050711,2]
[320349400,1711317032116,-159.80199,0.00052022,2]
[320349402,1711317032126,-151.77830394,0.00052774,60]
[320349404,1711317032135,-159.80199,0.00053333,2]
[320349406,1711317032144,-176.919026,0.00053519,2]
[320349408,1711317032153,-153.0,0.00053978,2]
[320349410,1711317032162,-153.0,0.00053978,2]
[320349412,1711317032172,-306.0,0.00053978,2]
[320349414,1711317032182,-153.0,0.00053978,2]
[320349416,1711317032191,-153.0,0.00053978,2]
[320349418,1711317032200,-153.0,0.00053978,2]
[320349420,1711317032209,-153.0,0.00053978,2]
[320349422,1711317032218,-153.0,0.00053978,2]
[320349423,1711317032227,-153.0,0.00053978,2]
[320349425,1711317032236,-307.1961117,0.00054252,2]
[320349428,1711317032246,-159.80199,0.00054644,2]
[320349429,1711317032257,-500.0,0.00054689,120]
[320349431,1711317032266,-8889.82552604,0.00054694,61]
[320349441,1711317037937,-500.0,0.00054689,120]
[320349442,1711317037949,-500.0,0.00054689,120]
[320349443,1711317037961,-500.0,0.00054689,120]
[320349444,1711317037972,-140.04946643,0.00054689,120]
[320349445,1711317037985,-359.95053357,0.00054689,120]
[320349446,1711317037996,-500.0,0.00054689,120]
[320349447,1711317038005,-500.0,0.00054689,120]
[320349448,1711317038017,-500.0,0.00054689,120]
[320349449,1711317038027,-500.0,0.00054689,120]
[320349450,1711317038038,-500.0,0.00054689,120]
[320349451,1711317038049,-500.0,0.00054689,120]
[320349452,1711317038061,-500.0,0.00054689,120]
[320349453,1711317038071,-500.0,0.00054689,120]
[320349454,1711317038083,-279.07846703,0.00054689,120]
[320349489,1711317040166,-220.92153297,0.00054689,120]
[320349491,1711317040176,-500.0,0.00054689,120]
[320349494,1711317040193,-500.0,0.00054689,120]
[320349496,1711317040205,-500.0,0.00054689,120]
[320349498,1711317040216,-500.0,0.00054689,120]
[320349500,1711317040227,-500.0,0.00054689,120]
[320349503,1711317040239,-500.0,0.00054689,120]
[320349505,1711317040252,-500.0,0.00054689,120]
[320349507,1711317040263,-500.0,0.00054689,120]
[320349510,1711317040275,-500.0,0.00054689,120]
[320349512,1711317040287,-500.0,0.00054689,120]
[320349514,1711317040299,-500.0,0.00054689,120]
[320349516,1711317040310,-500.0,0.00054689,120]
[320349518,1711317040321,-500.0,0.00054689,120]
[320349521,1711317040332,-500.0,0.00054689,120]
[320349523,1711317040342,-500.0,0.00054689,120]
[320349525,1711317040353,-500.0,0.00054689,120]
[320349527,1711317040365,-500.0,0.00054689,120]
[320349529,1711317040375,-500.0,0.00054689,120]
[320349532,1711317040385,-500.0,0.00054689,120]
[320349534,1711317040396,-500.0,0.00054689,120]
[320349536,1711317040407,-500.0,0.00054689,120]
[320349538,1711317040418,-500.0,0.00054689,120]
[320349540,1711317040428,-181.43561452,0.00054689,120]
[320349542,1711317040439,-7309.61305811,0.00054694,61]
[320349545,1711317040450,-9453.4797944,0.00054694,2]
[320349665,1711317043219,-2312.16407436,0.00054694,2]
[320349868,1711317210993,1381813.78427745,0.00028039,60]
[320349893,1711317828476,198.70334024,0.0002,4]
[320349896,1711317994104,-150.5956441,0.00023979,2]
[320349897,1711317994128,-1722.04968379,0.00025195,2]
[320349898,1711317994149,-644.83242,0.00025196,2]
[320349899,1711317994183,-223.78827966,0.00025939,2]
[320349900,1711317994207,-234.47146856,0.00025947,2]
[320349901,1711317994229,-4896.794366,0.00026047,2]
[320349902,1711318032090,-150.0,0.00025939,2]
[320349903,1711318032111,-42880.91277357,0.00026047,2]
[320349904,1711318032131,-500.0,0.00026047,2]
[320349905,1711318032154,-24900.0,0.00026048,2]
[320349906,1711318032177,-194.85675765,0.00026067,2]
[320349907,1711318032216,-675.7361777,0.00026167,2]
[320349908,1711318032239,-736.69863495,0.0002652,2]
[320349909,1711318032263,-1173.229722,0.00026573,2]
[320349910,1711318032284,-170.717143,0.00026722,2]
[320349911,1711318032307,-234.47146854,0.00026969,2]
[320349912,1711318032330,-500.0,0.00027397,2]
[320349913,1711318032353,-500.0,0.00027397,2]
[320349914,1711318032374,-500.0,0.00027397,2]
[320349915,1711318032397,-500.0,0.00027397,2]
[320349916,1711318032418,-500.0,0.00027397,2]
[320349917,1711318032439,-500.0,0.00027397,2]
[320349918,1711318032461,-500.0,0.00027397,2]
[320349919,1711318032481,-500.0,0.00027397,2]
[320349920,1711318032502,-500.0,0.00027397,2]
[320349921,1711318032523,-500.0,0.00027397,2]
[320349922,1711318032543,-500.0,0.00027397,2]
[320349923,1711318032563,-500.0,0.00027397,2]
[320349924,1711318032584,-500.0,0.00027397,2]
[320349925,1711318032606,-500.0,0.00027397,2]
[320349926,1711318032627,-500.0,0.00027397,2]
[320349927,1711318032648,-500.0,0.00027397,2]
[320349928,1711318032670,-500.0,0.00027397,2]
[320349929,1711318032690,-282.72231602,0.00027397,2]
[320349930,1711318032712,-500.0,0.00027397,2]
[320349931,1711318032733,-500.0,0.00027397,2]
[320349932,1711318032755,-500.0,0.00027397,2]
[320349933,1711318032775,-500.0,0.00027397,2]
[320349934,1711318032795,-500.0,0.00027397,2]
[320349935,1711318032816,-500.0,0.00027397,2]
[320349936,1711318032837,-500.0,0.00027397,2]
[320349937,1711318032860,-535.87708587,0.00027397,2]
[320349938,1711318032884,-535.87708587,0.00027397,2]
[320349939,1711318032907,-535.87708587,0.00027397,2]
[320349940,1711318032929,-535.87708587,0.00027397,2]
[320349941,1711318032950,-252.77532778,0.00027499,2]
[320349942,1711318032972,-362.03967621,0.00027499,2]
[320349943,1711318032993,-368.62101649,0.00027499,2]
[320349944,1711318033016,-20213.24150261,0.000275,2]
[320349945,1711318033046,-22801.59225533,0.000275,2]
[320349946,1711318033067,-1771.32547101,0.0002778,2]
[320349947,1711318033089,-3389.75678884,0.0002799,2]
[320349948,1711318033111,-234.47146854,0.0002799,2]
[320349949,1711318033133,-15981.47702153,0.00028061,2]
[320349950,1711318033159,-1446.77890635,0.00028089,2]
[320349951,1711318033183,-8099.71929207,0.0002809,3]
[320349952,1711318033205,-16422.18242786,0.000285,2]
[320349953,1711318033225,-3689.51507847,0.0002877,2]
[320349954,1711318045129,-24900.0,0.00025824,2]
[320349955,1711318045150,-86263.60366493,0.0002877,2]
[320349956,1711318045173,-150.0,0.00030939,2]
[320349957,1711318045194,-185.716181,0.00035616,120]
[320349958,1711318045217,-644.83242,0.00037793,2]
[320349959,1711318045236,-9001.56369244,0.00052899,5]
[320349960,1711318045256,-15315.67124397,0.000529,30]
[320349961,1711318045277,-156.915521,0.00053555,30]
[320349962,1711318045297,-174.86356,0.00053555,30]
[320349963,1711318045317,-153.0,0.00053678,2]
[320349964,1711318045337,-153.0,0.00053878,2]
[320349965,1711318045358,-153.0,0.00053978,2]
[320349966,1711318045378,-156.915521,0.00054447,30]
[320349967,1711318045398,-1447.20000003,0.00054485,3]
[320349968,1711318045419,-2000.0,0.00054592,2]
[320349969,1711318045439,-469.15229474,0.00054691,4]
[320349970,1711318045458,-318.86481701,0.00054691,4]
[320349971,1711318045477,-284.85720977,0.00054691,4]
[320349972,1711318045498,-157.35614108,0.00054691,4]
[320349973,1711318045519,-644.74178789,0.00054691,4]
[320349974,1711318045539,-400.0,0.00054691,2]
[320349975,1711318045559,-221.62642672,0.00054691,4]
[320349976,1711318045580,-5541.00282832,0.00054692,4]
[320349977,1711318045599,-863.98813889,0.00054692,4]
[320349978,1711318045619,-299.17163132,0.00054692,2]
[320349979,1711318045639,-170.85177647,0.00054693,2]
[320349980,1711318045660,-187.21282215,0.00054693,4]
[320349981,1711318045678,-302.44791801,0.00054693,4]
[320349982,1711318045698,-180.28197066,0.00054693,2]
[320349983,1711318045718,-625.0,0.00054693,30]
[320349984,1711318045737,-617.28162156,0.00054792,4]
[320349985,1711318045762,-179.11694063,0.00054792,4]
[320349986,1711318045783,-747.78016003,0.00054792,2]
[320349987,1711318045803,-1031.2729888,0.00054792,4]
[320349988,1711318045824,-595.64881378,0.00054792,120]
[320349989,1711318045845,-500.0,0.00054794,120]
[320349990,1711318045865,-500.0,0.00054794,120]
[320349991,1711318045886,-500.0,0.00054794,120]
[320349992,1711318045906,-500.0,0.00054794,120]
[320349993,1711318045926,-500.0,0.00054794,120]
[320349994,1711318045948,-500.0,0.00054794,120]
[320349995,1711318045968,-500.0,0.00054794,120]
[320349996,1711318045992,-500.0,0.00054794,120]
[320349997,1711318046014,-500.90243869,0.00054794,14]
[320349998,1711318046035,-500.0,0.00054794,120]
[320349999,1711318046055,-500.0,0.00054794,120]
[320350000,1711318046078,-500.0,0.00054794,120]
[320350001,1711318046099,-500.0,0.00054794,120]
[320350002,1711318046120,-500.0,0.00054794,120]
[320350003,1711318046141,-541.97,0.00054794,120]
[320350004,1711318046165,-500.0,0.00054794,120]
[320350005,1711318046185,-500.0,0.00054794,120]
[320350006,1711318046207,-500.0,0.00054794,120]
[320350007,1711318046227,-517.45667128,0.00054794,120]
[320350008,1711318046248,-500.0,0.00054794,120]
[320350009,1711318046268,-500.0,0.00054794,120]
[320350010,1711318046289,-500.0,0.00054794,120]
[320350011,1711318046310,-604.78255365,0.00054794,120]
[320350012,1711318046330,-500.0,0.00054794,120]
[320350013,1711318046350,-500.0,0.00054794,120]
[320350014,1711318046370,-500.0,0.00054794,120]
[320350015,1711318046391,-500.0,0.00054794,120]
[320350016,1711318046413,-500.0,0.00054794,120]
[320350017,1711318046434,-500.0,0.00054794,120]
[320350018,1711318046456,-500.0,0.00054794,120]
[320350019,1711318046477,-500.0,0.00054794,120]
[320350020,1711318046496,-500.0,0.00054794,120]
[320350021,1711318046516,-500.0,0.00054794,120]
[320350022,1711318046536,-500.0,0.00054794,120]
[320350023,1711318046556,-1493.84,0.00054794,120]
[320350024,1711318046577,-500.0,0.00054794,120]
[320350025,1711318046597,-500.0,0.00054794,120]
[320350026,1711318046618,-500.0,0.00054794,120]
[320350027,1711318046640,-936.58,0.00054794,120]
[320350028,1711318046663,-500.0,0.00054794,120]
[320350029,1711318046684,-500.0,0.00054794,2]
[320350030,1711318046706,-571.89,0.00054794,120]
[320350031,1711318046727,-500.0,0.00054794,120]
[320350032,1711318046749,-1456.59,0.00054794,120]
[320350033,1711318046770,-618.65,0.00054794,120]
[320350034,1711318046791,-500.0,0.00054794,120]
[320350035,1711318046810,-500.0,0.00054794,120]
[320350036,1711318046830,-1312.79,0.00054794,120]
[320350037,1711318046851,-964.94,0.00054794,120]
[320350038,1711318046871,-1174.08,0.00054794,120]
[320350039,1711318046891,-500.0,0.00054794,120]
[320350040,1711318046913,-1401.54,0.00054794,120]
[320350041,1711318046933,-500.0,0.00054794,120]
[320350042,1711318046953,-500.0,0.00054794,120]
[320350043,1711318046976,-1000.0,0.00054794,120]
[320350044,1711318046996,-1000.0,0.00054794,120]
[320350045,1711318047017,-1000.0,0.00054794,120]
[320350046,1711318047036,-1000.0,0.00054794,120]
[320350047,1711318047057,-1000.0,0.00054794,120]
[320350048,1711318047079,-1000.0,0.00054794,120]
[320350049,1711318047100,-1000.0,0.00054794,120]
[320350050,1711318047121,-1000.0,0.00054794,120]
[320350051,1711318047146,-1000.0,0.00054794,120]
[320350052,1711318047168,-1010.30745722,0.00054794,120]
[320350053,1711318047188,-500.0,0.00054794,120]
[320350054,1711318047210,-500.0,0.00054794,120]
[320350055,1711318047231,-500.0,0.00054794,120]
[320350056,1711318047251,-2191.25,0.00054794,120]
[320350057,1711318047271,-500.0,0.00054794,120]
[320350058,1711318047292,-589.47,0.00054794,120]
[320350059,1711318047313,-500.0,0.00054794,120]
[320350060,1711318047334,-500.0,0.00054794,120]
[320350061,1711318047355,-500.0,0.00054794,120]
[320350062,1711318047376,-500.0,0.00054794,120]
[320350063,1711318047396,-500.0,0.00054794,120]
[320350064,1711318047419,-500.0,0.00054794,120]
[320350065,1711318047440,-500.0,0.00054794,120]
[320350066,1711318047461,-500.0,0.00054794,120]
[320350067,1711318047592,-500.0,0.00054794,120]
[320350068,1711318047618,-500.0,0.00054794,120]
[320350069,1711318047638,-500.0,0.00054794,120]
[320350070,1711318047659,-500.0,0.00054794,120]
[320350071,1711318047679,-500.0,0.00054794,120]
[320350072,1711318047700,-8480.5,0.00054794,120]
[320350073,1711318047721,-348.30982632,0.00054794,120]
[320350074,1711318047741,-619.6,0.00054794,120]
[320350075,1711318047762,-500.0,0.00054794,120]
[320350076,1711318047783,-500.0,0.00054794,120]
[320350077,1711318047804,-500.0,0.00054794,120]
[320350078,1711318047824,-500.0,0.00054794,120]
[320350079,1711318047843,-2754.28,0.00054794,120]
[320350080,1711318047864,-500.0,0.00054794,120]
[320350081,1711318047884,-500.0,0.00054794,120]
[320350082,1711318047904,-2100.1,0.00054794,120]
[320350083,1711318047924,-1148.42,0.00054794,120]
[320350084,1711318047944,-3442.31,0.00054794,120]
[320350085,1711318047964,-500.0,0.00054794,120]
[320350086,1711318047985,-14574.47,0.00054794,120]
[320350087,1711318048006,-1457.71,0.00054794,120]
[320350088,1711318048025,-7509.55,0.00054794,120]
[320350089,1711318048046,-500.0,0.00054794,120]
[320350090,1711318048066,-1515.77,0.00054794,120]
[320350091,1711318048086,-500.0,0.00054794,120]
[320350092,1711318048107,-641.82,0.00054794,120]
[320350093,1711318048130,-500.0,0.00054794,120]
[320350094,1711318048150,-1204.65,0.00054794,120]
[320350095,1711318048172,-500.0,0.00054794,120]
[320350096,1711318048193,-500.0,0.00054794,120]
[320350097,1711318048215,-500.0,0.00054794,120]
[320350098,1711318048240,-500.0,0.00054794,60]
[320350099,1711318048261,-679.6,0.00054794,120]
[320350100,1711318048282,-500.0,0.00054794,120]
[320350101,1711318048302,-500.0,0.00054794,120]
[320350102,1711318048323,-1512.69,0.00054794,120]
[320350103,1711318048343,-500.0,0.00054794,120]
[320350104,1711318048364,-500.0,0.00054794,120]
[320350105,1711318048385,-2361.88,0.00054794,120]
[320350106,1711318048405,-500.0,0.00054794,120]
[320350107,1711318048426,-1404.37,0.00054794,120]
[320350108,1711318048447,-500.0,0.00054794,120]
[320350109,1711318048468,-500.0,0.00054794,120]
[320350110,1711318048489,-500.0,0.00054794,120]
[320350111,1711318048509,-500.0,0.00054794,120]
[320350112,1711318048531,-1185.04,0.00054794,120]
[320350113,1711318048552,-16500.75,0.00054794,90]
[320350114,1711318048573,-500.0,0.00054794,120]
[320350115,1711318048594,-500.0,0.00054794,120]
[320350116,1711318048616,-414.64018602,0.00054794,120]
[320350117,1711318048642,-500.0,0.00054794,120]
[320350118,1711318048663,-1707.27,0.00054794,120]
[320350119,1711318048684,-500.0,0.00054794,120]
[320350120,1711318048706,-2754.0,0.00054794,21]
[320350121,1711318048728,-1046.95,0.00054794,120]
[320350122,1711318048751,-666.15,0.00054794,120]
[320350123,1711318048773,-500.0,0.00054794,120]
[320350124,1711318048793,-500.0,0.00054794,120]
[320350125,1711318048813,-500.0,0.00054794,120]
[320350126,1711318048835,-500.0,0.00054794,120]
[320350127,1711318048856,-500.0,0.00054794,120]
[320350128,1711318048877,-500.0,0.00054794,120]
[320350129,1711318048897,-6914.41,0.00054794,120]
[320350130,1711318048918,-500.0,0.00054794,120]
[320350131,1711318048938,-500.0,0.00054794,120]
[320350132,1711318048959,-1364.17,0.00054794,120]
[320350133,1711318048981,-3192.35,0.00054794,120]
[320350134,1711318049001,-500.0,0.00054794,60]
[320350135,1711318049022,-5524.44,0.00054794,120]
[320350136,1711318049044,-5000.0,0.00054794,120]
[320350137,1711318049065,-500.0,0.00054794,120]
[320350138,1711318049086,-500.0,0.00054794,120]
[320350139,1711318049107,-2885.94,0.00054794,120]
[320350140,1711318049130,-1746.8,0.00054794,120]
[320350141,1711318049151,-2535.71,0.00054794,2]
[320350142,1711318049177,-14091.11,0.00054794,120]
[320350143,1711318049198,-747.88,0.00054794,120]
[320350144,1711318049221,-156.915521,0.0005534,30]
[320350145,1711318049243,-382.71,0.00055863,6]
[320350146,1711318049264,-625.0,0.00056063,30]
[320350147,1711318049284,-174.86356,0.00056232,30]
[320350148,1711318049305,-156.915521,0.00056232,30]
[320350149,1711318049326,-1473.97,0.00056807,6]
[320350150,1711318049347,-1000.0,0.00057107,10]
[320350151,1711318049369,-447.07942408,0.00057433,4]
[320350152,1711318049389,-625.0,0.00057433,30]
[320350153,1711318049413,-500.0,0.00057534,120]
[320350154,1711318049435,-500.0,0.00057534,120]
[320350155,1711318049456,-500.0,0.00057534,120]
[320350156,1711318049478,-500.0,0.00057534,120]
[320350157,1711318049499,-500.0,0.00057534,120]
[320350158,1711318049520,-500.0,0.00057534,120]
[320350159,1711318049540,-500.0,0.00057534,120]
[320350160,1711318049561,-500.0,0.00057534,120]
[320350161,1711318049581,-503.56864204,0.00057534,120]
[320350162,1711318049602,-500.0,0.00057534,120]
[320350163,1711318049623,-500.0,0.00057534,120]
[320350164,1711318049642,-500.0,0.00057534,120]
[320350165,1711318049664,-500.0,0.00057534,120]
[320350166,1711318049684,-541.97,0.00057534,120]
[320350167,1711318049705,-500.0,0.00057534,120]
[320350168,1711318049725,-500.0,0.00057534,120]
[320350169,1711318049746,-500.0,0.00057534,120]
[320350170,1711318049765,-500.0,0.00057534,120]
[320350171,1711318049787,-500.0,0.00057534,120]
[320350172,1711318049807,-500.0,0.00057534,120]
[320350173,1711318049828,-500.0,0.00057534,120]
[320350174,1711318049850,-500.0,0.00057534,120]
[320350175,1711318049871,-500.0,0.00057534,120]
[320350176,1711318049891,-500.0,0.00057534,120]
[320350177,1711318049913,-500.0,0.00057534,120]
[320350178,1711318049933,-500.0,0.00057534,120]
[320350179,1711318049953,-500.0,0.00057534,120]
[320350180,1711318049974,-500.0,0.00057534,120]
[320350181,1711318049994,-500.0,0.00057534,120]
[320350182,1711318050018,-1493.84,0.00057534,120]
[320350183,1711318050037,-500.0,0.00057534,120]
[320350184,1711318050057,-500.0,0.00057534,120]
[320350185,1711318050076,-523.86287833,0.00057534,120]
[320350186,1711318050098,-936.58,0.00057534,120]
[320350187,1711318050119,-500.0,0.00057534,120]
[320350188,1711318050143,-500.0,0.00057534,2]
[320350189,1711318050167,-571.89,0.00057534,120]
[320350190,1711318050192,-500.0,0.00057534,120]
[320350191,1711318050215,-1456.59,0.00057534,120]
[320350192,1711318050239,-618.65,0.00057534,120]
[320350193,1711318050261,-500.0,0.00057534,120]
[320350194,1711318050287,-500.0,0.00057534,120]
[320350195,1711318050309,-1312.79,0.00057534,120]
[320350196,1711318050331,-964.94,0.00057534,120]
[320350197,1711318050355,-1174.08,0.00057534,120]
[320350198,1711318050378,-500.0,0.00057534,120]
[320350199,1711318050399,-1401.54,0.00057534,120]
[320350200,1711318050425,-500.0,0.00057534,120]
[320350201,1711318050448,-500.0,0.00057534,120]
[320350202,1711318050472,-500.0,0.00057534,120]
[320350203,1711318050493,-500.0,0.00057534,120]
[320350204,1711318050515,-500.0,0.00057534,120]
[320350205,1711318050537,-2191.25,0.00057534,120]
[320350206,1711318050557,-500.0,0.00057534,120]
[320350207,1711318050578,-589.47,0.00057534,120]
[320350208,1711318050599,-500.0,0.00057534,120]
[320350209,1711318050620,-500.0,0.00057534,120]
[320350210,1711318050749,-500.0,0.00057534,120]
[320350211,1711318050775,-500.0,0.00057534,120]
[320350212,1711318050796,-500.0,0.00057534,120]
[320350213,1711318050818,-500.0,0.00057534,120]
[320350214,1711318050847,-500.0,0.00057534,120]
[320350215,1711318050868,-500.0,0.00057534,120]
[320350216,1711318050890,-500.0,0.00057534,120]
[320350217,1711318050912,-500.0,0.00057534,120]
[320350218,1711318050933,-500.0,0.00057534,120]
[320350219,1711318050956,-500.0,0.00057534,120]
[320350220,1711318050980,-8480.5,0.00057534,120]
[320350221,1711318051003,-619.6,0.00057534,120]
[320350222,1711318051025,-500.0,0.00057534,120]
[320350223,1711318051050,-500.0,0.00057534,120]
[320350224,1711318051071,-500.0,0.00057534,120]
[320350225,1711318051093,-500.0,0.00057534,120]
[320350226,1711318051114,-2754.28,0.00057534,120]
[320350227,1711318051138,-500.0,0.00057534,120]
[320350228,1711318051161,-500.0,0.00057534,120]
[320350229,1711318051183,-2100.1,0.00057534,120]
[320350230,1711318051204,-1148.42,0.00057534,120]
[320350231,1711318051228,-3442.31,0.00057534,120]
[320350232,1711318051250,-500.0,0.00057534,120]
[320350233,1711318051272,-14574.47,0.00057534,120]
[320350234,1711318051294,-1457.71,0.00057534,120]
[320350235,1711318051316,-7509.55,0.00057534,120]
[320350236,1711318051338,-1515.77,0.00057534,120]
[320350237,1711318051360,-500.0,0.00057534,120]
[320350238,1711318051381,-500.0,0.00057534,120]
[320350239,1711318051401,-641.82,0.00057534,120]
[320350240,1711318051424,-500.0,0.00057534,120]
[320350241,1711318051445,-1204.65,0.00057534,120]
[320350242,1711318051466,-500.0,0.00057534,120]
[320350243,1711318051487,-500.0,0.00057534,120]
[320350244,1711318051507,-503.41475985,0.00057534,120]
[320350245,1711318051529,-500.0,0.00057534,60]
[320350246,1711318051554,-679.6,0.00057534,120]
[320350247,1711318051574,-584.22392644,0.00057534,120]
[320350248,1711318051595,-500.0,0.00057534,120]
[320350249,1711318051614,-1512.69,0.00057534,120]
[320350250,1711318051634,-500.0,0.00057534,120]
[320350251,1711318051655,-503.59996678,0.00057534,120]
[320350252,1711318051683,-2361.88,0.00057534,120]
[320350253,1711318051704,-500.0,0.00057534,120]
[320350254,1711318051727,-1404.37,0.00057534,120]
[320350255,1711318051750,-500.0,0.00057534,120]
[320350256,1711318051773,-500.0,0.00057534,120]
[320350257,1711318051798,-500.0,0.00057534,120]
[320350258,1711318051820,-500.0,0.00057534,120]
[320350259,1711318051843,-1185.04,0.00057534,120]
[320350260,1711318051866,-16500.75,0.00057534,90]
[320350261,1711318051891,-500.0,0.00057534,120]
[320350262,1711318051923,-92.3294651,0.00057534,120]
[320350326,1711318232315,-468.38041801,0.00028088,2]
[320350327,1711318232325,-768.53560752,0.00028088,2]
[320350328,1711318232337,-850.89381848,0.00028088,2]
[320350330,1711318232346,-155.4308161,0.00028088,2]
[320350332,1711318232356,-309.32788261,0.00028088,2]
[320350335,1711318232368,-95.1130664,0.00028088,2]
[320350336,1711318232377,-406.46745534,0.00028088,2]
[320350338,1711318232387,-13992.08391906,0.00028089,2]
[320350340,1711318232396,-500.0,0.00028089,2]
[320350342,1711318232406,-500.0,0.00028089,2]
[320350344,1711318232415,-364.746924,0.00028089,2]
[320350346,1711318232424,-4049.85964603,0.00028089,3]
[320350348,1711318232434,-53928.54769917,0.0002809,60]
[320350350,1711318232446,-1319.57970314,0.0002809,60]